bitfinex/quotes_SOLUSD_20251115
["timestamp","ask_amount","ask_price","bid_price","bid_amount"]
[1763184914307,23.53336156,142.95,142.94,0.1]
[1763184914504,0.88216156,142.95,142.94,0.1]
[1763184914703,23.53336156,142.95,142.94,0.1]
[1763184915105,25.29143936,142.95,142.94,0.1]
[1763184917125,35.08026705,142.95,142.94,0.1]
[1763184919598,37.88561123,142.95,142.94,0.1]
[1763184920122,33.11218925,142.95,142.94,0.1]
[1763184920421,34.87026705,142.95,142.94,0.1]
[1763184922823,35.08026705,142.95,142.94,0.1]
[1763184922992,34.87026705,142.95,142.94,0.1]
[1763184928828,35.08026705,142.95,142.94,0.1]
[1763184929826,34.87026705,142.95,142.94,0.1]
[1763184932244,35.08026705,142.95,142.94,0.1]
[1763184932415,34.87026705,142.95,142.94,0.1]
[1763184932613,37.67561123,142.95,142.94,0.1]
[1763184933020,34.87026705,142.95,142.94,0.1]
[1763184933632,35.08026705,142.95,142.94,0.1]
[1763184933927,37.88561123,142.95,142.94,0.1]
[1763184934110,37.67561123,142.95,142.94,0.1]
[1763184935436,34.87026705,142.95,142.94,0.1]
[1763184935739,37.67561123,142.95,142.94,0.1]
[1763184935945,37.88561123,142.95,142.94,0.1]
[1763184943028,9.93098926,142.92,142.9,0.72]
[1763184943234,104.87216156,142.91,142.9,0.72]
[1763184945142,106.63023936,142.91,142.9,0.72]
[1763184948867,2.43023936,142.91,142.9,0.72]
[1763184952242,0.67216156,142.91,142.9,0.72]
[1763184952950,0.52999999,142.91,142.9,2.4780778]
[1763184953845,0.52999999,142.91,142.9,0.72]
[1763184954043,0.52999999,142.91,142.87,0.1]
[1763184954044,0.52999999,142.91,142.87,1.8580778]
[1763184954250,104.3,142.9,142.88,0.66]
[1763184954446,0.52999999,142.89,142.88,0.66]
[1763184960944,0.52999999,142.89,142.88,2.4180778]
[1763184962663,0.52999999,142.89,142.88,0.66]
[1763184964543,0.52999999,142.89,142.88,2.4180778]
[1763184964945,0.52999999,142.89,142.88,3.40834241]
[1763184966267,0.52999999,142.89,142.88,0.66]
[1763184968968,0.52999999,142.89,142.88,3.40834241]
[1763184969160,104.3,142.9,142.88,3.40834241]
[1763184969365,104.3,142.9,142.89,0.66]
[1763184970149,104.3,142.9,142.89,3.40834241]
[1763184970668,126.9512,142.95,142.89,3.40834241]
[1763184970871,126.9512,142.95,142.9,0.67]
[1763184971177,126.9512,142.95,142.91,2.74834241]
[1763184971667,126.9512,142.95,142.92,0.67]
[1763184972077,0.72,142.94,142.91,0.67]
[1763184972381,0.14216157,142.94,142.91,0.67]
[1763184974468,0.14216157,142.97,142.93,2.74834241]
[1763184974651,0.14216157,142.97,142.94,2.74834241]
[1763184974851,0.14216157,142.97,142.93,2.74834241]
[1763184975053,0.14216157,142.97,142.94,3.41834241]
[1763184975268,0.14216157,142.97,142.95,0.67]
[1763184977475,0.14216157,142.97,142.94,2.74834241]
[1763184977476,0.14216157,142.97,142.94,3.41834241]
[1763184977654,0.14216157,142.97,142.94,2.74834241]
[1763184977859,0.14216157,142.97,142.95,0.67]
[1763184981076,104.3,142.96,142.95,0.67]
[1763184981474,104.3,142.96,142.95,3.41834241]
[1763184987916,104.3,142.96,142.95,2.74834241]
[1763184988589,104.3,142.96,142.95,3.41834241]
[1763184993296,105.02,142.96,142.93,3.41834241]
[1763184993498,0.72,142.95,142.93,2.74834241]
[1763184993686,104.3,142.96,142.93,3.41834241]
[1763184995104,105.02,142.96,142.93,3.41834241]
[1763184998402,0.72,142.95,142.92,2.74834241]
[1763184998590,0.86216157,142.95,142.91,3.41834241]
[1763184999227,22.6512,142.93,142.88,2.74834241]
[1763184999511,0.72,142.92,142.89,0.67]
[1763185001910,22.6512,142.91,142.87,0.1]
[1763185002117,22.6512,142.91,142.87,0.77]
[1763185002317,23.3712,142.91,142.88,2.74834241]
[1763185002815,3.56050398,142.9,142.87,0.1]
[1763185003708,22.6512,142.91,142.88,2.74834241]
[1763185003913,2.89050398,142.92,142.88,2.74834241]
[1763185004093,3.56050398,142.92,142.89,0.66]
[1763185004506,0.67,142.91,142.88,3.40834241]
[1763185004702,0.67,142.91,142.87,0.76]
[1763185004901,0.67,142.91,142.87,3.50834241]
[1763185005400,0.67,142.91,142.88,0.66]
[1763185006991,26.21170398,142.91,142.87,0.1]
[1763185007193,3.56050398,142.9,142.87,0.76]
[1763185007615,2.89050398,142.9,142.87,0.76]
[1763185008900,0.14216157,142.9,142.87,0.76]
[1763185009507,0.14216157,142.9,142.87,3.50834241]
[1763185010394,0.14216157,142.9,142.88,0.66]
[1763185011718,0.14216157,142.9,142.87,3.50834241]
[1763185013512,104.3,142.89,142.87,3.50834241]
[1763185014218,104.3,142.89,142.87,0.76]
[1763185021306,104.3,142.89,142.88,2.74834241]
[1763185021528,104.3,142.89,142.87,3.50834241]
[1763185021714,3.41834241,142.88,142.87,0.1]
[1763185021914,16.09767408,142.88,142.87,0.1]
[1763185023125,13.34933167,142.88,142.87,0.1]
[1763185023321,0.14216157,142.88,142.87,0.1]
[1763185023536,13.34933167,142.88,142.87,0.1]
[1763185026627,3.56050398,142.88,142.87,0.1]
[1763185026818,25.22383776,142.88,142.87,0.1]
[1763185027744,0.14216157,142.89,142.87,0.76]
[1763185028727,12.21930388,142.91,142.88,1.76047619]
[1763185028728,0.14216157,142.91,142.88,1.76047619]
[1763185028908,0.14216157,142.91,142.89,0.66]
[1763185029114,22.79336157,142.91,142.89,0.66]
[1763185029331,22.79336157,142.91,142.89,2.42047619]
[1763185029930,22.79336157,142.91,142.9,0.66]
[1763185031420,22.79336157,142.91,142.87,0.1]
[1763185031421,23.50336157,142.91,142.87,0.77]
[1763185031625,23.50336157,142.91,142.87,2.53047619]
[1763185031927,22.79336157,142.91,142.88,0.67]
[1763185032933,25.21383776,142.91,142.87,0.1]
[1763185033133,25.21383776,142.91,142.87,0.76]
[1763185034328,0.66,142.9,142.87,0.76]
[1763185034617,25.21383776,142.91,142.87,0.76]
[1763185035317,24.55383776,142.91,142.87,0.76]
[1763185035721,25.21383776,142.91,142.87,0.76]
[1763185036831,0.14216157,142.89,142.87,0.76]
[1763185037926,2.56263776,142.89,142.87,0.1]
[1763185038134,104.44216157,142.88,142.87,0.1]
[1763185038328,0.80216157,142.88,142.87,0.1]
[1763185039024,0.14216157,142.88,142.87,0.1]
[1763185039222,0.14216157,142.88,142.87,0.76]
[1763185039548,0.14216157,142.88,142.87,0.1]
[1763185043666,0.14216157,142.88,142.87,0.76]
[1763185044256,0.14216157,142.88,142.87,0.1]
[1763185048464,0.14216157,142.88,142.87,0.76]
[1763185049183,0.14216157,142.88,142.87,0.1]
[1763185050943,0.14216157,142.88,142.87,0.76]
[1763185051145,0.14216157,142.88,142.87,0.1]
[1763185052068,0.14216157,142.88,142.87,0.76]
[1763185052355,0.14216157,142.88,142.87,0.1]
[1763185052536,0.80216157,142.88,142.87,0.1]
[1763185052736,35.00266545,142.88,142.87,0.1]
[1763185053042,39.72554101,142.88,142.87,0.1]
[1763185053963,22.79336157,142.88,142.87,0.76]
[1763185054161,22.79336157,142.88,142.87,0.1]
[1763185057748,24.55383776,142.88,142.87,0.1]
[1763185058853,0.14216157,142.88,142.87,0.76]
[1763185059465,1.76047619,142.9,142.87,0.76]
[1763185059664,0.14216157,142.9,142.87,0.76]
[1763185060461,1.90263776,142.9,142.87,0.76]
[1763185064069,0.14216157,142.9,142.87,0.76]
[1763185064267,104.3,142.91,142.88,1.76047619]
[1763185064471,104.3,142.91,142.89,0.68]
[1763185066465,104.3,142.91,142.89,2.44047619]
[1763185066982,104.3,142.91,142.9,0.68]
[1763185067401,22.6512,142.93,142.9,0.68]
[1763185067579,22.6512,142.93,142.91,1.76047619]
[1763185068070,1.90263776,142.95,142.92,0.68]
[1763185068276,22.6512,142.93,142.92,0.68]
[1763185068786,22.6512,142.94,142.92,0.68]
[1763185071887,2.60263776,142.93,142.89,0.68]
[1763185072185,7.32225987,142.93,142.89,2.44047619]
[1763185072390,2.60263776,142.93,142.9,0.68]
[1763185072871,1.90263776,142.93,142.9,0.68]
[1763185074983,106.20263776,142.93,142.9,0.68]
[1763185076288,104.44216157,142.93,142.9,0.68]
[1763185076597,104.3,142.93,142.9,2.44047619]
[1763185076968,104.3,142.93,142.91,0.68]
[1763185080180,106.76047619,142.93,142.9,0.68]
[1763185080888,104.3,142.93,142.9,0.68]
[1763185082305,106.06047619,142.93,142.9,0.68]
[1763185084700,104.3,142.93,142.9,0.68]
[1763185091515,0.14216157,142.92,142.89,0.66]
[1763185091804,3.56067546,142.92,142.89,0.66]
[1763185092012,0.14216157,142.9,142.87,0.76]
[1763185092208,0.14216157,142.9,142.88,0.66]
[1763185092389,0.14216157,142.9,142.87,0.1]
[1763185092583,2.74851389,142.89,142.87,0.1]
[1763185092810,3.39851389,142.89,142.87,0.1]
[1763185093301,2.74851389,142.89,142.87,0.1]
[1763185093504,3.54067546,142.9,142.87,0.82]
[1763185095491,2.74851389,142.89,142.87,0.82]
[1763185095699,2.74851389,142.89,142.87,0.1]
[1763185096104,3.39851389,142.89,142.87,0.1]
[1763185096304,2.89067546,142.88,142.87,0.1]
[1763185096818,0.14216157,142.88,142.87,0.1]
[1763185097324,3.54067546,142.88,142.87,0.1]
[1763185100406,2.89067546,142.88,142.87,0.1]
[1763185103312,0.14216157,142.88,142.87,0.82]
[1763185103507,2.74851389,142.9,142.87,0.82]
[1763185103813,0.14216157,142.89,142.87,0.82]
[1763185104501,0.14216157,142.9,142.87,0.82]
[1763185107823,0.14216157,142.9,142.87,3.56851389]
[1763185108013,0.14216157,142.9,142.88,0.72]
[1763185109134,25.39971389,142.92,142.88,0.72]
[1763185109313,0.14216157,142.91,142.88,0.72]
[1763185110504,0.14216157,142.91,142.88,3.46851389]
[1763185110905,0.14216157,142.91,142.89,0.72]
[1763185111117,0.79216157,142.91,142.88,0.72]
[1763185111602,0.14216157,142.91,142.88,0.72]
[1763185113043,104.3,142.9,142.88,0.72]
[1763185113616,104.3,142.9,142.88,3.46851389]
[1763185114117,104.3,142.9,142.89,0.72]
[1763185114523,104.3,142.9,142.88,0.72]
[1763185132440,104.3,142.9,142.88,3.46851389]
[1763185132641,104.3,142.9,142.89,0.67]
[1763185140142,104.3,142.9,142.87,0.1]
[1763185140336,104.3,142.9,142.88,0.67]
[1763185155769,104.3,142.9,142.88,2.42948408]
[1763185155961,104.3,142.9,142.89,0.7]
[1763185160379,0.14216157,142.91,142.89,0.7]
[1763185160602,4.87337403,142.91,142.89,0.7]
[1763185160884,2.80554094,142.9,142.89,0.7]
[1763185165366,2.80554094,142.9,142.87,1.85948408]
[1763185165587,2.80554094,142.9,142.88,0.7]
[1763185166577,2.80554094,142.9,142.87,0.1]
[1763185166782,0.72,142.89,142.87,0.1]
[1763185167381,4.66502502,142.89,142.87,0.8]
[1763185170666,4.66502502,142.89,142.87,2.55948408]
[1763185171477,4.66502502,142.89,142.87,1.85948408]
[1763185171675,5.38502502,142.89,142.87,0.1]
[1763185171877,7.1445091,142.89,142.87,0.1]
[1763185172071,2.47948408,142.89,142.87,0.1]
[1763185172278,2.80593455,142.88,142.87,0.1]
[1763185173591,4.56541863,142.88,142.87,0.1]
[1763185173981,2.80593455,142.88,142.87,0.1]
[1763185175795,2.80593455,142.88,142.87,2.55948408]
[1763185175971,104.3,142.9,142.87,2.55948408]
[1763185176167,104.3,142.9,142.88,0.7]
[1763185176366,104.3,142.9,142.88,2.45948408]
[1763185176592,104.3,142.9,142.89,0.7]
[1763185177963,128.71068408,142.94,142.89,2.45948408]
[1763185178163,128.71068408,142.94,142.88,1.75948408]
[1763185178164,0.14216157,142.93,142.9,2.45948408]
[1763185178393,22.6512,142.92,142.91,1.75948408]
[1763185178574,22.6512,142.92,142.91,2.45948408]
[1763185190630,0.14216157,142.97,142.91,9.4974204]
[1763185190806,0.79216157,142.97,142.92,7.68793632]
[1763185191105,0.79216157,142.97,142.95,1.75948408]
[1763185192606,0.79216157,142.97,142.95,2.40948408]
[1763185192811,0.14216157,142.97,142.95,2.40948408]
[1763185193003,0.14216157,142.97,142.96,1.75948408]
[1763185193605,0.14216157,142.97,142.94,10.43882769]
[1763185193903,0.14216157,142.97,142.95,2.40948408]
[1763185201410,0.79216157,142.97,142.94,12.19831177]
[1763185201606,0.79216157,142.97,142.94,2.40948408]
[1763185201806,10.58098926,142.97,142.94,2.40948408]
[1763185203015,0.65,142.96,142.93,0.65]
[1763185203391,21.68418054,142.96,142.94,1.75948408]
[1763185203900,21.03418054,142.96,142.94,2.40948408]
[1763185206011,21.03418054,142.96,142.94,0.65]
[1763185206322,21.03418054,142.96,142.94,2.40948408]
[1763185206821,125.33418054,142.96,142.94,2.40948408]
[1763185208135,125.33418054,142.96,142.91,21.03418054]
[1763185208301,0.79216157,142.95,142.91,2.40948408]
[1763185208491,104.3,142.94,142.91,2.40948408]
[1763185208691,0.14216157,142.93,142.9,1.75948408]
[1763185208897,0.79216157,142.93,142.9,2.7481287]
[1763185209297,21.83076741,142.93,142.9,3.3981287]
[1763185209721,21.83076741,142.93,142.88,23.78673454]
[1763185209722,21.83076741,142.93,142.91,3.3981287]
[1763185210037,21.18076741,142.93,142.91,3.3981287]
[1763185211941,21.03860584,142.93,142.92,3.4581287]
[1763185212149,104.3,142.94,142.92,3.4581287]
[1763185212322,126.03713053,142.94,142.92,2.7481287]
[1763185212632,126.03713053,142.94,142.91,3.4581287]
[1763185212633,105.0,142.94,142.91,3.4581287]
[1763185213234,21.03713053,142.93,142.91,3.4581287]
[1763185214657,105.0,142.94,142.91,3.4581287]
[1763185215054,125.33713053,142.94,142.91,2.7481287]
[1763185215359,126.02713053,142.94,142.91,3.4581287]
[1763185216755,104.99,142.94,142.91,3.4581287]
[1763185217142,126.02713053,142.94,142.91,3.4581287]
[1763185217850,104.3,142.94,142.93,2.7481287]
[1763185218041,104.3,142.94,142.93,3.4581287]
[1763185219842,6.99879692,142.96,142.93,3.4581287]
[1763185220050,6.99879692,142.96,142.95,2.7481287]
[1763185220242,5.40637136,142.98,142.95,2.7481287]
[1763185220644,26.43760273,142.98,142.95,3.4581287]
[1763185220953,0.14216157,142.98,142.95,2.7481287]
[1763185221249,0.69,142.97,142.95,2.7481287]
[1763185221757,5.55032137,142.98,142.95,3.4581287]
[1763185222352,4.86032137,142.98,142.95,2.7481287]
[1763185222654,4.86032137,142.98,142.96,0.71]
[1763185222954,0.14216157,142.98,142.96,3.4581287]
[1763185223856,0.14216157,142.98,142.96,2.7481287]
[1763185224255,0.14216157,142.98,142.96,3.4581287]
[1763185224559,105.13216157,142.98,142.94,0.71]
[1763185224757,105.13216157,142.98,142.95,2.7481287]
[1763185225259,105.13216157,142.98,142.95,3.4581287]
[1763185225461,104.44216157,142.98,142.96,0.71]
[1763185225958,104.44216157,142.98,142.96,3.4581287]
[1763185226759,104.3,142.98,142.96,3.4581287]
[1763185229664,0.69,142.97,142.94,0.71]
[1763185229853,0.69,142.97,142.94,2.7481287]
[1763185230052,3.58029027,142.97,142.93,0.71]
[1763185230372,3.58029027,142.97,142.93,3.4581287]
[1763185230538,0.69,142.96,142.93,3.4581287]
[1763185231046,2.89029027,142.97,142.93,0.71]
[1763185231248,0.69,142.96,142.93,3.4581287]
[1763185232367,0.69,142.96,142.93,0.71]
[1763185232579,8.30012773,142.97,142.94,0.71]
[1763185232973,0.14216157,142.95,142.92,0.71]
[1763185233162,2.89029027,142.95,142.91,2.7481287]
[1763185233468,3.58029027,142.95,142.91,2.7481287]
[1763185233668,0.69,142.94,142.91,3.4581287]
[1763185233861,3.58029027,142.95,142.91,3.4581287]
[1763185234058,3.58029027,142.95,142.92,0.71]
[1763185234765,0.69,142.94,142.91,3.4581287]
[1763185236151,104.99,142.94,142.91,3.4581287]
[1763185236465,107.7381287,142.94,142.9,3.4581287]
[1763185236971,0.83216157,142.93,142.9,3.4581287]
[1763185237465,0.14216157,142.93,142.9,2.7481287]
[1763185237769,0.14216157,142.93,142.91,0.71]
[1763185238656,0.14216157,142.93,142.9,3.4581287]
[1763185239363,0.14216157,142.93,142.9,0.71]
[1763185239566,107.7381287,142.92,142.87,0.1]
[1763185239773,22.79336157,142.88,142.87,0.1]
[1763185240072,25.54149027,142.88,142.87,0.1]
[1763185240245,23.48336157,142.88,142.87,0.1]
[1763185240745,26.23149027,142.88,142.87,0.1]
[1763185241762,23.48336157,142.88,142.87,0.1]
[1763185241968,26.23149027,142.88,142.87,0.1]
[1763185242964,38.76844666,142.88,142.87,0.1]
[1763185246257,41.57516875,142.88,142.87,0.1]
[1763185249776,36.07891135,142.88,142.87,0.1]
[1763185249988,35.38891135,142.88,142.87,0.1]
[1763185250199,38.13704005,142.88,142.87,0.1]
[1763185250494,38.78704005,142.88,142.87,0.1]
[1763185250867,41.53516875,142.88,142.87,0.1]
[1763185256591,36.03891135,142.88,142.87,0.1]
[1763185256793,41.53516875,142.88,142.87,0.1]
[1763185259798,38.13704005,142.88,142.87,0.1]
[1763185260021,38.78704005,142.88,142.87,0.1]
[1763185260499,38.13704005,142.88,142.87,0.1]
[1763185260683,41.53516875,142.88,142.87,0.1]
[1763185268000,40.88516875,142.88,142.87,0.1]
[1763185269409,38.13704005,142.88,142.87,0.77]
[1763185271101,37.14960874,142.88,142.87,0.1]
[1763185271305,35.38891135,142.88,142.87,0.1]
[1763185271494,37.14960874,142.88,142.87,0.1]
[1763185271695,35.38891135,142.88,142.87,0.1]
[1763185271895,37.14960874,142.88,142.87,0.1]
[1763185273592,37.14960874,142.88,142.87,0.77]
[1763185274006,1.90285896,142.88,142.87,0.77]
[1763185275697,0.14216157,142.88,142.87,0.77]
[1763185276111,1.90285896,142.88,142.87,0.77]
[1763185278114,0.14216157,142.88,142.87,0.77]
[1763185278712,22.6512,142.89,142.87,0.77]
[1763185279793,0.14216157,142.91,142.88,1.76069739]
[1763185280000,22.6512,142.9,142.89,0.67]
[1763185280196,104.3,142.91,142.89,0.67]
[1763185280589,104.3,142.91,142.89,2.43069739]
[1763185280792,104.3,142.91,142.9,0.67]
[1763185282503,104.44216157,142.91,142.87,1.86069739]
[1763185282706,1.76069739,142.9,142.88,0.67]
[1763185283211,106.06069739,142.91,142.88,0.67]
[1763185284121,104.3,142.91,142.88,2.43069739]
[1763185284497,104.3,142.91,142.89,0.67]
[1763185289725,104.3,142.91,142.87,1.86069739]
[1763185289726,1.90285896,142.9,142.87,0.1]
[1763185290021,1.76069739,142.89,142.87,0.77]
[1763185291916,106.06069739,142.89,142.87,0.77]
[1763185292218,104.3,142.89,142.87,0.77]
[1763185299133,104.3,142.89,142.87,2.53069739]
[1763185299512,104.3,142.89,142.88,2.43069739]
[1763185304718,22.6512,142.94,142.88,4.19139478]
[1763185304719,126.9512,142.94,142.88,4.19139478]
[1763185305038,126.9512,142.94,142.9,1.76069739]
[1763185305529,126.9512,142.94,142.91,0.7]
[1763185306524,129.40189739,142.94,142.91,0.7]
[1763185309534,127.6412,142.94,142.91,0.7]
[1763185313022,126.9512,142.94,142.91,0.7]
[1763185313428,126.9512,142.94,142.91,2.46069739]
[1763185314642,126.9512,142.94,142.92,0.7]
[1763185317844,126.9512,142.94,142.9,1.76069739]
[1763185318045,127.6412,142.94,142.91,0.7]
[1763185318452,126.9512,142.94,142.91,0.7]
[1763185319151,127.6412,142.94,142.91,0.7]
[1763185319635,126.9512,142.94,142.91,0.7]
[1763185319836,126.9512,142.94,142.91,2.46069739]
[1763185320348,126.9512,142.94,142.92,0.7]
[1763185320547,126.9512,142.94,142.92,2.46069739]
[1763185320730,126.9512,142.94,142.93,0.7]
[1763185320931,104.3,142.94,142.93,0.7]
[1763185322025,104.3,142.94,142.92,0.7]
[1763185332463,10.50882769,142.97,142.93,1.76069739]
[1763185332464,0.14216157,142.97,142.93,1.76069739]
[1763185332838,0.14216157,142.97,142.94,0.66]
[1763185333549,0.81216157,142.97,142.94,0.66]
[1763185333744,0.14216157,142.97,142.94,0.66]
[1763185336340,0.81216157,142.97,142.94,0.66]
[1763185336639,104.3,142.98,142.94,3.40679303]
[1763185336834,3.5589546,143.02,142.97,2.74679303]
[1763185337061,0.14216157,143.02,142.98,3.40679303]
[1763185337467,0.81216157,143.02,142.99,0.66]
[1763185338262,3.5589546,143.02,142.98,2.74679303]
[1763185338447,3.5589546,143.02,142.98,0.66]
[1763185340750,2.8889546,143.02,142.98,3.40679303]
[1763185340955,3.5589546,143.02,142.98,3.40679303]
[1763185341170,3.5589546,143.02,142.99,0.66]
[1763185347764,104.3,143.01,142.99,0.66]
[1763185348159,6.30574763,143.0,142.94,0.66]
[1763185348372,2.74679303,142.98,142.94,0.66]
[1763185348577,2.74679303,142.97,142.94,0.66]
[1763185348759,2.74679303,142.96,142.92,3.40679303]
[1763185348963,2.74679303,142.94,142.9,2.74679303]
[1763185349173,2.74679303,142.94,142.91,0.66]
[1763185349364,3.41679303,142.94,142.91,0.66]
[1763185350058,2.74679303,142.94,142.91,0.66]
[1763185351778,0.67,142.98,142.92,2.74679303]
[1763185352078,2.74679303,142.96,142.93,0.66]
[1763185352762,22.6512,142.97,142.93,3.40679303]
[1763185352968,2.8889546,142.98,142.93,3.40679303]
[1763185353168,2.8889546,142.98,142.94,0.66]
[1763185353666,2.8889546,142.98,142.94,3.40679303]
[1763185353866,2.8889546,142.98,142.94,0.66]
[1763185354060,2.74679303,142.97,142.94,0.66]
[1763185354258,3.41679303,142.97,142.94,0.66]
[1763185355266,2.74679303,142.97,142.94,0.66]
[1763185356680,107.1889546,142.98,142.94,0.66]
[1763185357785,107.8589546,142.98,142.94,0.66]
[1763185360189,2.74679303,142.97,142.94,0.66]
[1763185363900,3.46679303,142.97,142.94,0.68]
[1763185366683,2.74679303,142.97,142.94,0.68]
[1763185369381,3.46679303,142.97,142.94,0.68]
[1763185370075,2.74679303,142.97,142.94,0.68]
[1763185375496,3.6089546,142.96,142.92,0.68]
[1763185375695,2.74679303,142.95,142.92,0.68]
[1763185375999,104.3,142.95,142.92,0.68]
[1763185379398,104.3,142.95,142.92,3.42679303]
[1763185379601,104.3,142.95,142.94,2.74679303]
[1763185379786,104.3,142.95,142.94,3.42679303]
[1763185383607,126.9512,142.99,142.94,3.42679303]
[1763185383795,126.9512,142.99,142.96,2.74679303]
[1763185384197,126.9512,142.99,142.97,0.68]
[1763185386093,126.9512,142.99,142.97,3.42679303]
[1763185386683,126.9512,142.99,142.98,0.68]
[1763185387393,9.93098926,143.02,142.98,0.68]
[1763185387394,2.8889546,143.02,142.98,0.68]
[1763185387598,2.8889546,143.02,142.98,3.42679303]
[1763185387915,0.14216157,143.02,142.98,3.42679303]
[1763185388212,0.14216157,143.02,142.99,0.68]
[1763185388920,0.86216157,143.02,142.99,0.68]
[1763185389105,3.6089546,143.02,142.99,0.68]
[1763185390206,0.14216157,143.02,142.99,0.68]
[1763185391411,0.14216157,143.02,142.99,3.42679303]
[1763185391812,0.14216157,143.02,143.0,0.66]
[1763185392008,126.9512,143.03,143.0,0.66]
[1763185392206,104.3,143.03,143.01,2.74679303]
[1763185392720,104.3,143.03,143.02,3.40679303]
[1763185392904,0.2,143.04,143.02,2.41580925]
[1763185393101,0.2,143.04,143.03,0.71]
[1763185393302,0.2,143.04,143.02,1.75580925]
[1763185393506,0.2,143.04,143.02,0.71]
[1763185398500,2.64580925,143.04,143.0,0.71]
[1763185398700,2.64580925,143.04,143.0,2.46580925]
[1763185399230,2.64580925,143.04,143.01,0.71]
[1763185399808,2.44580925,143.03,142.99,2.46580925]
[1763185400016,2.44580925,143.03,143.0,0.71]
[1763185400626,106.74580925,143.03,143.0,0.71]
[1763185401828,1.75580925,143.01,142.97,0.71]
[1763185402014,1.75580925,143.0,142.97,0.71]
[1763185402215,1.75580925,143.0,142.95,1.75580925]
[1763185402520,2.44580925,143.0,142.96,0.71]
[1763185403427,1.75580925,143.0,142.96,2.46580925]
[1763185403910,2.44580925,143.0,142.97,0.71]
[1763185404111,1.75580925,143.0,142.97,0.71]
[1763185404527,2.44580925,143.0,142.97,0.71]
[1763185406825,1.75580925,143.0,142.97,0.71]
[1763185407026,2.44580925,143.0,142.97,0.71]
[1763185407931,0.69,143.0,142.97,0.71]
[1763185409345,2.44580925,143.0,142.97,0.71]
[1763185411115,0.69,143.0,142.97,0.71]
[1763185411324,2.58797082,143.01,142.97,0.71]
[1763185412444,104.3,143.0,142.97,0.71]
[1763185414013,104.99,143.0,142.97,0.71]
[1763185414346,106.74580925,143.0,142.97,0.71]
[1763185414641,106.05580925,143.0,142.97,0.71]
[1763185415245,106.74580925,143.0,142.97,0.71]
[1763185417714,106.05580925,143.0,142.97,0.71]
[1763185418741,104.3,143.0,142.97,0.71]
[1763185423035,105.0,143.0,142.97,0.71]
[1763185423941,104.3,143.0,142.97,0.71]
[1763185429240,105.0,143.0,142.97,0.71]
[1763185429914,106.75580925,143.0,142.97,0.71]
[1763185430144,2.45580925,142.99,142.94,0.7]
[1763185430435,2.45580925,142.98,142.94,0.7]
[1763185431819,1.75580925,142.95,142.92,0.7]
[1763185432220,2.45580925,142.95,142.92,0.7]
[1763185432647,1.75580925,142.96,142.92,0.7]
[1763185432823,2.45580925,142.96,142.92,0.7]
[1763185433940,1.75580925,142.96,142.92,0.7]
[1763185434245,2.45580925,142.96,142.92,2.45580925]
[1763185434747,2.45580925,142.96,142.93,0.7]
[1763185436150,1.75580925,142.95,142.93,0.7]
[1763185437642,2.45580925,142.96,142.93,0.7]
[1763185438452,24.40700925,142.97,142.93,0.7]
[1763185438750,25.10700925,142.97,142.93,0.7]
[1763185439755,104.44216157,142.99,142.94,1.75580925]
[1763185440048,106.05580925,142.99,142.95,1.75580925]
[1763185440652,106.05580925,142.99,142.96,0.7]
[1763185442455,106.75580925,142.99,142.96,0.7]
[1763185446437,1.75580925,142.98,142.96,0.7]
[1763185450550,106.05580925,142.99,142.96,0.7]
[1763185450759,106.74580925,142.99,142.96,0.7]
[1763185451466,104.3,142.99,142.96,0.7]
[1763185451665,106.74580925,142.99,142.96,0.7]
[1763185452556,104.99,142.99,142.96,0.7]
[1763185452758,106.74580925,142.99,142.96,0.7]